bitfinex-derivatives/quotes_BTCF0:USTF0_20260118
["timestamp","ask_amount","ask_price","bid_price","bid_amount"]
[1768741001113,0.010516,95129.0,95117.0,0.00963899]
[1768741003211,0.010516,95132.0,95122.0,0.00963279]
[1768741005117,0.00015768,95133.0,95122.0,0.00963279]
[1768741008617,0.01067368,95133.0,95122.0,0.00963279]
[1768741009623,0.01067368,95133.0,95123.0,0.00963279]
[1768741013220,0.00015768,95133.0,95123.0,0.00963279]
[1768741019424,0.00015768,95133.0,95123.0,0.11936703]
[1768741019624,0.00015768,95133.0,95124.0,0.00940247]
[1768741023236,0.00015768,95133.0,95124.0,0.11913671]
[1768741024330,0.00015768,95133.0,95125.0,0.00940247]
[1768741025139,0.00015768,95133.0,95125.0,0.11913671]
[1768741025935,0.00015768,95133.0,95126.0,0.00940247]
[1768741031951,0.00015768,95133.0,95126.0,0.11913671]
[1768741032140,0.09464,95139.0,95130.0,0.00940247]
[1768741034536,0.105155,95139.0,95130.0,0.00940247]
[1768741038553,0.105155,95139.0,95126.0,0.10973424]
[1768741044354,0.09464,95139.0,95126.0,0.10973424]
[1768741044558,0.09464,95139.0,95126.0,0.11934629]
[1768741049864,0.09464,95139.0,95127.0,0.00961205]
[1768741053666,0.010515,95138.0,95127.0,0.00961205]
[1768741054365,0.09464,95139.0,95127.0,0.00961205]
[1768741064357,0.09464,95139.0,95127.0,0.02012805]
[1768741065069,0.09464,95139.0,95128.0,0.00989776]
[1768741065570,0.09464,95139.0,95129.0,0.00989776]
[1768741071981,0.09464,95139.0,95125.0,0.12089629]
[1768741074278,0.09464,95139.0,95125.0,0.010517]
[1768741076178,0.09464,95139.0,95127.0,0.00907191]
[1768741076378,0.09468,95142.0,95128.0,0.00907191]
[1768741081178,0.09468,95142.0,95127.0,0.010516]
[1768741089178,0.09468,95142.0,95129.0,0.010516]
[1768741092381,0.09468,95142.0,95131.0,0.010516]
[1768741092885,0.09468,95142.0,95131.0,0.01958791]
[1768741094380,0.09468,95142.0,95133.0,0.010516]
[1768741094587,0.09468,95151.0,95136.0,0.00907191]
[1768741098093,0.010514,95150.0,95131.0,0.00907191]
[1768741101199,0.010514,95148.0,95131.0,0.00907191]
[1768741102203,0.010514,95148.0,95132.0,0.010516]
[1768741102703,0.010514,95148.0,95131.0,0.00907191]
[1768741105208,0.09468,95151.0,95131.0,0.00907191]
[1768741105392,0.0090658,95150.0,95128.0,0.09468]
[1768741105796,0.0090658,95148.0,95128.0,0.09468]
[1768741106405,0.010515,95143.0,95128.0,0.09468]
[1768741106606,0.010515,95143.0,95129.0,0.00231266]
[1768741119129,0.010514,95146.0,95129.0,0.00231266]
[1768741119530,0.010515,95144.0,95129.0,0.00231266]
[1768741123343,0.010515,95144.0,95129.0,0.03070795]
[1768741126346,0.010515,95144.0,95129.0,0.00231266]
[1768741128344,0.010515,95144.0,95129.0,0.03070795]
[1768741128840,0.0195798,95148.0,95129.0,0.03070795]
[1768741129032,0.010514,95148.0,95130.0,0.00985397]
[1768741129538,0.09464,95152.0,95130.0,0.02036997]
[1768741129737,0.09464,95152.0,95133.0,0.010516]
[1768741131744,0.09464,95152.0,95130.0,0.00985397]
[1768741131745,0.09464,95152.0,95135.0,0.010516]
[1768741133744,0.09464,95152.0,95130.0,0.15275721]
[1768741133745,0.09464,95152.0,95133.0,0.010516]
[1768741136837,0.09464,95152.0,95135.0,0.010516]
[1768741137036,0.09464,95152.0,95137.0,0.010515]
[1768741140743,0.09464,95152.0,95133.0,0.12263326]
[1768741141042,0.09664292,95152.0,95133.0,0.12263326]
[1768741141242,0.00200292,95151.0,95133.0,0.00976108]
[1768741142049,0.00200292,95151.0,95134.0,0.010516]
[1768741145548,0.00200292,95151.0,95136.0,0.010515]
[1768741147751,0.00200292,95151.0,95133.0,0.00976108]
[1768741148146,0.02109603,95184.0,95165.0,0.00976108]
[1768741148347,0.03160603,95184.0,95165.0,0.00976108]
[1768741148548,0.02113069,95179.0,95161.0,0.010513]
[1768741148942,0.02113069,95179.0,95165.0,0.00015768]
[1768741149245,0.10515,95185.0,95160.0,0.02836957]
[1768741149246,0.02097301,95172.0,95160.0,0.02836957]
[1768741149447,0.02097301,95171.0,95157.0,0.02836957]
[1768741149657,0.02097301,95171.0,95156.0,0.02836957]
[1768741150352,0.02097301,95171.0,95155.0,0.02836957]
[1768741150542,0.02097301,95171.0,95156.0,0.02836957]
[1768741151350,0.02097301,95171.0,95155.0,0.02836957]
[1768741152453,0.02097301,95171.0,95154.0,0.03888257]
[1768741153247,0.02097301,95171.0,95154.0,0.010513]
[1768741158646,0.02097301,95171.0,95153.0,0.02836957]
[1768741160559,0.02097301,95171.0,95155.0,0.02836957]
[1768741160857,0.03148501,95171.0,95155.0,0.02836957]
[1768741161150,0.03148501,95171.0,95151.0,0.09653085]
[1768741161151,0.02948667,95165.0,95151.0,0.05870476]
[1768741161357,0.02948667,95165.0,95150.0,0.09464]
[1768741162057,0.02948667,95165.0,95150.0,0.1512986]
[1768741162447,0.02948667,95165.0,95150.0,0.0566586]
[1768741162643,0.02948667,95165.0,95148.0,0.02836957]
[1768741162856,0.00923229,95163.0,95148.0,0.08694327]
[1768741163154,0.02923676,95161.0,95148.0,0.08694327]
[1768741163454,0.02923676,95161.0,95149.0,0.00231218]
[1768741163655,0.02923676,95164.0,95149.0,0.00231218]
[1768741164055,0.02923676,95164.0,95149.0,0.03068175]
[1768741165351,0.03974876,95164.0,95149.0,0.03068175]
[1768741167250,0.03974876,95164.0,95150.0,0.02836957]
[1768741167456,0.02887957,95163.0,95149.0,0.03068175]
[1768741168360,0.02887957,95163.0,95150.0,0.02836957]
[1768741168946,0.02887957,95163.0,95151.0,0.02836957]
[1768741169260,0.02887957,95163.0,95152.0,0.02836957]
[1768741170757,0.02887957,95163.0,95152.0,5.7e-07]
[1768741170960,0.010513,95157.0,95149.0,0.00231218]
[1768741171962,0.010513,95157.0,95144.0,0.00231228]
[1768741172262,0.010513,95159.0,95144.0,0.00231228]
[1768741173357,0.010513,95159.0,95144.0,0.04013837]
[1768741175364,0.010513,95159.0,95145.0,0.03782609]
[1768741175663,0.010513,95159.0,95144.0,0.04013837]
[1768741176365,0.010513,95159.0,95145.0,0.03782609]
[1768741177461,0.010513,95159.0,95146.0,0.03782609]
[1768741177864,0.010513,95157.0,95146.0,0.03782609]
[1768741180969,0.010513,95157.0,95144.0,0.00231228]
[1768741180970,0.010513,95157.0,95147.0,0.03782609]
[1768741185469,0.010513,95157.0,95148.0,0.03782609]
[1768741186570,0.13300574,95164.0,95148.0,0.03782609]
[1768741186571,0.010513,95155.0,95148.0,0.03782609]
[1768741187265,0.010513,95159.0,95148.0,0.03782609]
[1768741188370,0.010513,95159.0,95149.0,0.03782609]
[1768741190670,0.010513,95159.0,95147.0,0.03782609]
[1768741195188,0.010513,95159.0,95147.0,0.0470039]
[1768741195588,0.010513,95159.0,95148.0,0.03782609]
[1768741195888,0.010513,95159.0,95147.0,0.0470039]
[1768741196289,0.010513,95159.0,95148.0,0.03782609]
[1768741197991,0.010513,95157.0,95148.0,0.03782609]
[1768741198193,0.010513,95157.0,95147.0,0.0470039]
[1768741199792,0.105153,95160.0,95148.0,0.00917781]
[1768741199991,0.105153,95160.0,95148.0,0.12894354]
[1768741200393,0.105153,95160.0,95148.0,0.16676963]
[1768741200593,0.105153,95160.0,95150.0,0.03782609]
[1768741201382,0.010513,95158.0,95150.0,0.03782609]
[1768741201581,0.010513,95156.0,95150.0,0.03782609]
[1768741201783,0.010513,95156.0,95150.0,9e-08]
[1768741202393,0.010513,95159.0,95150.0,9e-08]
[1768741208304,0.010513,95159.0,95148.0,0.00917781]
[1768741209306,0.010513,95157.0,95148.0,0.00917781]
[1768741211207,0.105153,95160.0,95148.0,0.00917781]
[1768741212306,0.010513,95157.0,95148.0,0.00917781]
[1768741214106,0.105153,95160.0,95148.0,0.00917781]
[1768741217011,0.09464,95160.0,95148.0,0.00917781]
[1768741223610,0.09464,95160.0,95148.0,0.01969181]
[1768741225814,0.09464,95160.0,95148.0,0.00917781]
[1768741230716,0.09464,95160.0,95146.0,0.05680728]
[1768741230917,0.09464,95160.0,95154.0,0.02839882]
[1768741238132,0.09464,95160.0,95150.0,0.03786509]
[1768741238331,0.12461652,95160.0,95150.0,0.03786509]
[1768741239031,0.02997652,95160.0,95150.0,0.03786509]
[1768741239427,0.010513,95159.0,95150.0,0.03786509]
[1768741239622,0.02997652,95160.0,95150.0,0.03786509]
[1768741240934,0.04048952,95160.0,95150.0,0.03786509]
[1768741241135,0.010513,95158.0,95150.0,0.03786509]
[1768741242333,0.010513,95156.0,95149.0,0.03786509]
[1768741242534,0.010513,95159.0,95150.0,0.03786509]
[1768741242752,0.02997652,95160.0,95150.0,0.03786509]
[1768741243055,0.105153,95162.0,95150.0,0.03786509]
[1768741247049,0.00993758,95160.0,95145.0,0.05680728]
[1768741247251,0.010514,95149.0,95137.0,0.0098817]
[1768741247557,0.010514,95146.0,95129.0,0.00231266]
[1768741247942,0.010515,95143.0,95129.0,0.00231266]
[1768741248252,0.00469256,95144.0,95129.0,0.00231266]
[1768741249258,0.00023101,95143.0,95129.0,0.00231266]
[1768741253659,0.010515,95142.0,95129.0,0.00231266]
[1768741255464,0.010515,95139.0,95129.0,0.00231266]
[1768741257563,0.010515,95142.0,95129.0,0.00231266]
[1768741258058,0.00023101,95143.0,95129.0,0.00231266]
[1768741260258,0.010514,95145.0,95129.0,0.00231266]
[1768741262665,0.09464,95145.0,95136.0,0.00919291]
[1768741262863,0.09464,95148.0,95139.0,0.00919291]
[1768741267066,0.09484323,95157.0,95139.0,0.00919291]
[1768741267369,0.09464,95156.0,95142.0,0.00919291]
[1768741271065,0.10799069,95158.0,95142.0,0.00919291]
[1768741271266,0.09464,95157.0,95142.0,0.00919291]
[1768741271665,0.010513,95156.0,95142.0,0.00919291]
[1768741271970,0.010514,95154.0,95142.0,0.00919291]
[1768741272360,0.010514,95154.0,95137.0,0.1216146]
[1768741272561,0.09749006,95156.0,95137.0,0.00919291]
[1768741272766,0.09749006,95155.0,95137.0,0.00919291]
[1768741274268,0.010514,95151.0,95137.0,0.00919291]
[1768741276575,0.10800306,95155.0,95137.0,0.00919291]
[1768741278974,0.010514,95153.0,95137.0,0.00919291]
[1768741288081,0.09764774,95155.0,95137.0,0.00919291]
[1768741288881,0.10816074,95155.0,95137.0,0.00919291]
[1768741293283,0.09764774,95155.0,95137.0,0.00919291]
[1768741293476,0.010514,95153.0,95137.0,0.00919291]
[1768741294078,0.10945899,95153.0,95137.0,0.00919291]
[1768741295992,0.010514,95151.0,95137.0,0.00919291]
[1768741302389,0.09894499,95153.0,95137.0,0.00919291]
[1768741303883,0.10945899,95153.0,95137.0,0.00919291]
[1768741308698,0.010514,95151.0,95137.0,0.00919291]
[1768741309196,0.09894499,95153.0,95137.0,0.00919291]
[1768741312708,0.10945899,95153.0,95137.0,0.00919291]
[1768741315617,0.10945899,95153.0,95134.0,0.00015768]
[1768741317916,0.010514,95151.0,95134.0,0.00015768]
[1768741318219,0.10914455,95151.0,95134.0,0.00015768]
[1768741322025,0.09863055,95151.0,95134.0,0.00015768]
[1768741325025,0.09863055,95151.0,95135.0,0.010516]
[1768741326129,0.09863055,95151.0,95134.0,0.00015768]
[1768741326628,0.09863055,95151.0,95134.0,0.01067368]
[1768741331832,0.09863055,95151.0,95134.0,0.00015768]
[1768741333237,0.010514,95150.0,95134.0,0.00015768]
[1768741333738,0.09788955,95149.0,95134.0,0.00015768]
[1768741336036,0.10840355,95149.0,95134.0,0.00015768]
[1768741340339,0.09788955,95149.0,95134.0,0.00015768]
[1768741340542,0.09788955,95149.0,95134.0,0.01067368]
[1768741341728,0.09788955,95149.0,95136.0,0.010515]
[1768741348538,0.09788955,95149.0,95138.0,0.010515]
[1768741348945,0.09788955,95149.0,95134.0,0.00015768]
[1768741350046,0.00958046,95144.0,95129.0,0.04014539]
[1768741350246,0.09713246,95143.0,95129.0,0.00231266]
[1768741350651,0.10671292,95143.0,95129.0,0.00231266]
[1768741351053,0.09713246,95141.0,95129.0,0.00231266]
[1768741353556,0.09713246,95141.0,95130.0,0.09464]
[1768741354250,0.010514,95153.0,95131.0,0.010516]
[1768741356155,0.00398436,95152.0,95131.0,0.010516]
[1768741357855,0.0041684,95150.0,95130.0,0.09464]
[1768741365060,0.0041684,95150.0,95130.0,0.105156]
[1768741365452,0.00015768,95155.0,95135.0,0.1245488]
[1768741365654,0.00015768,95155.0,95136.0,0.01218011]
[1768741366564,0.00015768,95155.0,95136.0,0.02269511]
[1768741367663,0.00015768,95155.0,95139.0,0.010515]
[1768741372971,0.00015768,95155.0,95139.0,0.02347998]
[1768741373171,0.00015768,95155.0,95139.0,0.01296498]
[1768741386777,0.00015768,95155.0,95140.0,0.01296498]
[1768741389881,0.00015768,95155.0,95140.0,0.12327296]
[1768741390480,0.00015768,95155.0,95141.0,0.01296498]
[1768741390481,0.010514,95153.0,95141.0,0.01296498]
[1768741390676,0.00015768,95155.0,95141.0,0.01296498]
[1768741390677,0.010514,95150.0,95141.0,0.01296498]
[1768741391181,0.010514,95148.0,95141.0,0.01296498]
[1768741392389,0.00015768,95155.0,95141.0,0.01296498]
[1768741393179,0.010514,95151.0,95141.0,0.01296498]
[1768741398784,0.00015768,95155.0,95141.0,0.01296498]
[1768741399885,0.010514,95151.0,95141.0,0.01296498]
[1768741411697,0.010514,95151.0,95141.0,0.05489004]
[1768741412004,0.010514,95154.0,95141.0,0.01296498]
[1768741412189,0.010514,95152.0,95141.0,0.01296498]
[1768741412801,0.010514,95150.0,95141.0,0.01296498]
[1768741413299,0.00015768,95155.0,95141.0,0.01296498]
[1768741414002,0.010514,95152.0,95141.0,0.01296498]
[1768741414295,0.00015768,95155.0,95141.0,0.01296498]
[1768741414699,0.00015768,95155.0,95141.0,0.13001806]
[1768741415400,0.010514,95151.0,95141.0,0.13001806]
[1768741415587,0.010514,95151.0,95142.0,0.01445176]
[1768741416198,0.00015768,95155.0,95142.0,0.01445176]
[1768741416496,0.010514,95151.0,95142.0,0.01445176]
[1768741418301,0.010514,95149.0,95142.0,0.01445176]
[1768741418602,0.00015768,95155.0,95142.0,7.6e-07]
[1768741418902,0.01067068,95155.0,95142.0,7.6e-07]
[1768741419905,0.00015768,95155.0,95142.0,7.6e-07]
[1768741423504,0.00015768,95155.0,95143.0,0.10833599]
[1768741423705,0.00015768,95155.0,95143.0,0.12350842]
[1768741424109,0.00015768,95155.0,95143.0,0.01517243]
[1768741424608,0.09464,95156.0,95143.0,0.01517243]
[1768741424814,0.09464,95157.0,95143.0,0.01517243]
[1768741425203,0.09464,95157.0,95145.0,0.12350842]
[1768741425702,0.88108,95172.0,95143.0,0.010515]
[1768741425703,0.09464,95161.0,95152.0,0.12350842]
[1768741425902,0.09464,95165.0,95152.0,0.12350842]
[1768741426102,0.09464,95165.0,95152.0,0.16471505]
[1768741426303,0.09464,95165.0,95152.0,0.12350842]
[1768741427611,0.010512,95164.0,95152.0,0.12350842]
[1768741429099,0.09464,95165.0,95152.0,0.12350842]
[1768741433119,0.010512,95164.0,95152.0,0.12350842]
[1768741436622,0.09464,95165.0,95152.0,0.12350842]
[1768741437519,0.105152,95165.0,95152.0,0.12350842]
[1768741439930,0.09464,95165.0,95152.0,0.12350842]
[1768741446040,0.105152,95165.0,95152.0,0.12350842]
[1768741448939,0.09464,95165.0,95152.0,0.12350842]
[1768741458552,0.09464,95165.0,95152.0,0.13402242]
[1768741458748,0.02679389,95176.0,95160.0,0.1370522]
[1768741458947,0.09464,95175.0,95160.0,0.1370522]
[1768741460446,0.105151,95175.0,95160.0,0.1370522]
[1768741463449,0.105151,95175.0,95160.0,0.01840045]
[1768741464056,0.010511,95173.0,95160.0,0.01840045]
[1768741464254,0.010511,95173.0,95157.0,0.11959939]
[1768741464654,0.010512,95171.0,95157.0,0.11959939]
[1768741467563,0.08939267,95186.0,95164.0,0.14113259]
[1768741467748,0.50992,95185.0,95164.0,0.14113259]
[1768741467943,0.010511,95178.0,95164.0,0.14113259]
[1768741469258,0.010511,95176.0,95164.0,0.14113259]
[1768741469454,0.0891888,95184.0,95164.0,0.14113259]
[1768741469660,0.10911645,95184.0,95164.0,0.0215332]
[1768741470959,0.010511,95174.0,95164.0,0.0215332]
[1768741471560,0.010512,95172.0,95164.0,0.0215332]
[1768741473866,0.010512,95168.0,95160.0,0.11959939]
[1768741474957,0.010512,95166.0,95160.0,0.11959939]
[1768741475967,0.09464,95177.0,95160.0,0.11959939]
[1768741476872,0.010512,95168.0,95160.0,0.11959939]
[1768741480960,0.010512,95168.0,95158.0,0.0215332]
[1768741481261,0.010512,95168.0,95158.0,0.13248854]
[1768741481662,0.09464,95177.0,95158.0,0.13248854]
[1768741481663,0.010512,95166.0,95158.0,0.13248854]
[1768741482164,0.010512,95164.0,95158.0,0.13248854]
[1768741484475,0.010512,95168.0,95159.0,0.11095534]
[1768741485072,0.010512,95168.0,95159.0,0.13313911]
[1768741485272,0.09464,95177.0,95159.0,0.13313911]
[1768741485572,0.010512,95168.0,95159.0,0.13313911]
[1768741487374,0.010512,95168.0,95161.0,0.11095534]
[1768741490278,0.09464,95177.0,95161.0,0.11095534]
[1768741490579,0.010512,95168.0,95161.0,0.11095534]
[1768741492180,0.09464,95177.0,95161.0,0.11095534]
[1768741492374,0.09464,95177.0,95162.0,0.0229073]
[1768741493382,0.010512,95169.0,95162.0,0.0229073]
[1768741503398,0.010512,95167.0,95162.0,3e-07]
[1768741503895,0.010512,95167.0,95161.0,3.4e-07]
[1768741506499,0.010512,95167.0,95156.0,0.0229073]
[1768741506698,0.010512,95170.0,95157.0,0.11223133]
[1768741507295,0.010512,95168.0,95157.0,0.11223133]
[1768741508696,0.00015768,95175.0,95157.0,0.11223133]
[1768741509996,0.010512,95167.0,95157.0,0.11223133]
[1768741512200,0.010512,95165.0,95157.0,0.11223133]
[1768741513702,0.02101693,95163.0,95147.0,0.02839501]
[1768741513902,0.02101693,95158.0,95144.0,1e-08]
[1768741514092,0.010514,95152.0,95140.0,0.09464]
[1768741514298,0.010514,95152.0,95134.0,0.09464]
[1768741514498,0.11360217,95155.0,95133.0,0.09464]
[1768741514905,0.010514,95151.0,95133.0,0.09464]
[1768741515601,0.010514,95151.0,95134.0,0.11223133]
[1768741518009,0.010514,95148.0,95134.0,0.11223133]
[1768741518312,0.010514,95148.0,95134.0,0.13513863]
[1768741519105,0.010514,95146.0,95134.0,0.13513863]
[1768741520607,0.010514,95150.0,95134.0,0.13513863]
[1768741523408,0.010514,95150.0,95136.0,0.11100459]
[1768741524516,0.010514,95148.0,95136.0,0.11100459]
[1768741527707,0.010514,95146.0,95132.0,0.11100459]
[1768741528108,0.010514,95146.0,95132.0,0.13718409]
[1768741528511,0.010514,95146.0,95134.0,0.11100459]
[1768741531115,0.010514,95146.0,95134.0,0.13718409]
[1768741537312,0.010514,95146.0,95136.0,0.11124855]
[1768741537513,0.11761139,95154.0,95135.0,0.02436504]
[1768741537709,0.02585955,95146.0,95129.0,0.00231266]
[1768741537913,0.02585955,95145.0,95129.0,0.00231266]
[1768741538119,0.010515,95138.0,95129.0,0.00231266]
[1768741538815,0.010516,95136.0,95126.0,0.11124855]
[1768741539015,0.010516,95136.0,95122.0,0.09464]
[1768741540318,0.010515,95139.0,95122.0,0.09464]
[1768741540518,0.010515,95139.0,95124.0,0.11356132]
[1768741540825,0.010516,95133.0,95124.0,0.11356132]
[1768741541925,0.010516,95133.0,95124.0,0.00231277]
[1768741544227,0.010516,95136.0,95124.0,0.00231277]
[1768741545327,0.010515,95139.0,95124.0,0.00231277]
[1768741550032,0.02585955,95140.0,95124.0,0.00231277]
[1768741557536,0.010515,95139.0,95124.0,0.00231277]
[1768741557743,0.03412704,95139.0,95124.0,0.00231277]
[1768741559038,0.010516,95136.0,95124.0,0.00231277]
[1768741559237,0.02361204,95136.0,95124.0,0.00231277]
[1768741559432,0.03412804,95132.0,95124.0,0.00215743]
[1768741559637,0.03412804,95132.0,95114.0,0.09464]
[1768741559937,0.010516,95130.0,95114.0,0.09464]
[1768741560137,0.02361204,95126.0,95109.0,0.00231315]
[1768741560736,0.02361204,95126.0,95109.0,0.01283115]
[1768741561434,0.02361204,95126.0,95112.0,0.010518]
[1768741562135,0.09464,95130.0,95114.0,0.010518]
[1768741562340,0.09464,95130.0,95117.0,0.010518]
[1768741562942,0.09464,95130.0,95116.0,0.10851061]
[1768741563339,0.09464,95130.0,95115.0,0.010518]
[1768741565136,0.09464,95130.0,95113.0,0.10851061]
[1768741566042,0.09464,95130.0,95113.0,0.11902861]
[1768741566437,0.11825204,95130.0,95113.0,0.11902861]
[1768741571146,0.12876804,95130.0,95113.0,0.10851061]
[1768741571937,0.11110843,95126.0,95110.0,0.03783273]
[1768741572137,0.02361204,95125.0,95110.0,0.03783273]
[1768741572445,0.02361204,95123.0,95110.0,0.03783273]
[1768741574546,0.02361204,95123.0,95109.0,0.04014588]
[1768741575552,0.02361204,95123.0,95110.0,0.010518]
[1768741577258,0.02361204,95123.0,95109.0,0.04014588]
[1768741577446,0.02361204,95123.0,95109.0,0.00231315]
[1768741582262,0.02361204,95123.0,95110.0,0.010518]
[1768741591863,0.02361204,95123.0,95109.0,0.00231315]
[1768741595977,0.01480068,95120.0,95109.0,0.00231315]
[1768741613386,0.09468,95128.0,95093.0,0.05473449]
[1768741613387,0.1089587,95117.0,95093.0,0.05473449]
[1768741613573,0.01260225,95100.0,95084.0,0.00519449]
[1768741613774,0.00174607,95115.0,95089.0,0.01260205]
[1768741613979,0.00015768,95102.0,95091.0,0.12814395]
[1768741614187,0.02331336,95101.0,95091.0,0.12814395]
[1768741614388,0.02331336,95100.0,95091.0,0.12814395]
[1768741614681,0.02342985,95099.0,95091.0,0.01260205]
[1768741614887,0.00015768,95102.0,95091.0,0.01260205]
[1768741615187,0.010518,95111.0,95091.0,0.01260205]
[1768741615788,0.010519,95109.0,95088.0,0.09468]
[1768741615987,0.010519,95109.0,95087.0,0.11569958]
[1768741616487,0.01218307,95107.0,95088.0,0.09468]
[1768741616883,0.00166407,95107.0,95088.0,0.09468]
[1768741619189,0.00166407,95107.0,95088.0,0.10728205]
[1768741619589,0.00166407,95107.0,95089.0,0.01260205]
[1768741619784,0.010518,95112.0,95089.0,0.01260205]
[1768741619785,0.00225539,95110.0,95090.0,0.01260205]
[1768741619986,0.00225539,95110.0,95093.0,0.01052]
[1768741620186,0.00225539,95110.0,95091.0,0.01260205]
[1768741624293,0.00225539,95110.0,95092.0,0.01052]
[1768741624790,0.00225539,95110.0,95092.0,0.02312205]
[1768741625687,0.00225539,95110.0,95095.0,0.01052]
[1768741626397,0.00231277,95124.0,95107.0,0.01260205]
[1768741626780,0.02453854,95123.0,95107.0,0.01260205]
[1768741626993,0.02453854,95122.0,95107.0,0.01260205]
[1768741627191,0.02453854,95121.0,95107.0,0.01260205]
[1768741627390,0.02453854,95120.0,95107.0,0.01260205]
[1768741627591,0.02453854,95119.0,95107.0,0.01260205]
[1768741627797,0.02453854,95118.0,95107.0,0.01260205]
[1768741628090,0.02453854,95117.0,95107.0,0.01260205]
[1768741628291,0.00231277,95124.0,95107.0,0.01260205]
[1768741628492,0.02454084,95123.0,95107.0,0.01260205]
[1768741628690,0.02454084,95122.0,95107.0,0.01260205]
[1768741628895,0.02454084,95121.0,95107.0,0.01260205]
[1768741629095,0.02454084,95120.0,95107.0,0.01260205]
[1768741629394,0.00231277,95124.0,95107.0,0.01260205]
[1768741629395,0.02454084,95119.0,95107.0,0.01260205]
[1768741629592,0.02454084,95118.0,95108.0,0.12814395]
[1768741629893,0.00231277,95124.0,95110.0,0.01260205]
[1768741630085,0.00231277,95124.0,95111.0,0.01260205]
[1768741630482,0.00231277,95124.0,95106.0,0.11569958]
[1768741631398,0.010517,95119.0,95106.0,0.00015768]
[1768741631587,0.010517,95122.0,95106.0,0.00015768]
[1768741632296,0.010517,95119.0,95106.0,0.00015768]
[1768741635096,0.01260225,95123.0,95106.0,0.00015768]
[1768741636495,0.010518,95117.0,95106.0,0.00015768]
[1768741641706,0.02445909,95116.0,95106.0,0.00015768]
[1768741641892,0.02445909,95115.0,95106.0,0.00015768]
[1768741642205,0.02445909,95114.0,95106.0,0.00015768]
[1768741642397,0.02445909,95113.0,95106.0,0.00015768]
[1768741642597,0.02445909,95112.0,95106.0,0.00015768]
[1768741642804,0.02445909,95111.0,95106.0,0.00015768]
[1768741643092,0.02445909,95110.0,95106.0,0.00015768]
[1768741643292,0.02445909,95109.0,95106.0,0.00015768]
[1768741643500,0.02445909,95108.0,95106.0,0.00015768]
[1768741643806,0.02445909,95107.0,95106.0,0.00015768]
[1768741644203,0.02445909,95116.0,95106.0,0.00015768]
[1768741644401,0.02445909,95115.0,95106.0,0.00015768]
[1768741644599,0.02445909,95114.0,95106.0,0.00015768]
[1768741644799,0.02445909,95113.0,95106.0,0.00015768]
[1768741645101,0.02445909,95112.0,95106.0,0.00015768]
[1768741645305,0.02445909,95111.0,95106.0,0.00015768]
[1768741645504,0.02445909,95110.0,95106.0,0.00015768]
[1768741645696,0.02445909,95109.0,95106.0,0.00015768]
[1768741645894,0.02445909,95108.0,95106.0,0.00015768]
[1768741646094,0.02445909,95107.0,95106.0,0.00015768]
[1768741646297,0.01744387,95114.0,95099.0,0.09468]
[1768741646495,0.04190296,95113.0,95099.0,0.09468]
[1768741646706,0.02445909,95112.0,95099.0,0.09468]
[1768741647711,0.01744387,95118.0,95099.0,0.09468]
[1768741647712,0.02445909,95111.0,95099.0,0.09468]
[1768741647915,0.01744387,95118.0,95099.0,0.09468]
[1768741647916,0.02445909,95110.0,95099.0,0.09468]
[1768741648114,0.02445909,95109.0,95099.0,0.09468]
[1768741648417,0.01744387,95118.0,95099.0,0.09468]
[1768741650812,0.010518,95117.0,95099.0,0.09468]
[1768741651814,0.010518,95117.0,95095.0,0.02791336]
[1768741652013,0.010518,95117.0,95096.0,0.09468]
[1768741654702,0.010518,95117.0,95096.0,0.11207336]
[1768741654903,0.010518,95115.0,95096.0,0.11207336]
[1768741655202,0.010518,95115.0,95096.0,0.13212341]
[1768741655398,0.010518,95115.0,95097.0,0.09468]
[1768741656113,0.010518,95115.0,95097.0,0.11384658]
[1768741659820,0.01744387,95118.0,95097.0,0.11384658]
[1768741660008,0.01744387,95118.0,95097.0,0.23202831]
[1768741660316,0.0239993,95117.0,95097.0,0.23202831]
[1768741660518,0.0239993,95116.0,95097.0,0.23202831]
[1768741660718,0.0239993,95115.0,95097.0,0.23202831]
[1768741660918,0.0239993,95114.0,95097.0,0.23202831]
[1768741661114,0.0239993,95113.0,95097.0,0.21286173]
[1768741661319,0.0239993,95112.0,95098.0,0.01916658]
[1768741661627,0.0239993,95111.0,95098.0,0.01916658]
[1768741661811,0.0239993,95110.0,95098.0,0.01916658]
[1768741662013,0.0239993,95109.0,95098.0,0.01916658]
[1768741662216,0.0239993,95108.0,95098.0,0.01916658]
[1768741662422,0.0239993,95107.0,95098.0,0.13734831]
[1768741662716,0.0239993,95106.0,95098.0,0.13734831]
[1768741662915,0.0239993,95105.0,95098.0,0.13734831]
[1768741663113,0.01744387,95118.0,95098.0,0.13734831]
[1768741663621,0.010518,95116.0,95098.0,0.13734831]
[1768741665331,0.010518,95116.0,95099.0,0.01916658]
[1768741665922,0.010518,95116.0,95099.0,0.13734831]
[1768741670123,0.010518,95116.0,95100.0,0.01916658]
[1768741670428,0.010518,95116.0,95101.0,0.13734831]
[1768741672326,0.09468,95122.0,95101.0,0.13734831]
[1768741672834,0.010518,95118.0,95104.0,0.02048658]
[1768741673719,0.01962614,95121.0,95096.0,0.23433587]
[1768741674114,0.01962614,95121.0,95097.0,0.13965587]
[1768741674318,0.01962614,95121.0,95098.0,0.02048658]
[1768741674529,0.010518,95115.0,95098.0,0.13965587]
[1768741675026,0.02387388,95114.0,95098.0,0.13965587]
[1768741675227,0.02387388,95113.0,95098.0,0.13965587]
[1768741675428,0.02387388,95112.0,95098.0,0.13965587]
[1768741675629,0.02387388,95111.0,95098.0,0.13965587]
[1768741675827,0.02387388,95110.0,95098.0,0.13965587]
[1768741676028,0.02387388,95109.0,95098.0,0.13965587]
[1768741676327,0.02387388,95108.0,95099.0,0.02048658]
[1768741676527,0.010518,95115.0,95099.0,0.13965587]
[1768741679332,0.010518,95115.0,95100.0,0.02048658]
[1768741679532,0.010518,95118.0,95101.0,0.13965587]
[1768741680434,0.010518,95116.0,95101.0,0.13965587]
[1768741680624,0.010518,95114.0,95101.0,0.13965587]
[1768741682227,0.09468,95120.0,95101.0,0.13965587]
[1768741682427,0.11390102,95107.0,95088.0,0.09468]
[1768741682636,0.11390102,95107.0,95084.0,0.00231374]
[1768741682637,0.010519,95103.0,95084.0,0.00231374]
[1768741683237,0.010519,95101.0,95084.0,0.00231374]
[1768741683439,0.010519,95103.0,95084.0,0.00231374]
[1768741683734,0.010519,95100.0,95084.0,0.02280032]
[1768741683924,0.11390102,95104.0,95084.0,0.02280032]
[1768741683925,0.010519,95103.0,95084.0,0.02280032]
[1768741685128,0.010519,95101.0,95084.0,0.02280032]
[1768741685731,0.01052,95099.0,95084.0,0.02280032]
[1768741686131,0.01052,95099.0,95085.0,0.11916922]